bitfinex-derivatives/quotes_BTCF0:USTF0_20250313
["timestamp","ask_amount","ask_price","bid_price","bid_amount"]
[1741843826517,0.1798199,83425.0,83424.0,0.1398778]
[1741843827022,0.1198791,83424.0,83423.0,0.0305]
[1741843827206,0.1504791,83424.0,83423.0,0.0305]
[1741843827407,0.1624178,83424.0,83423.0,0.0305]
[1741843827615,0.1938178,83424.0,83423.0,0.0961]
[1741843828307,0.1948178,83424.0,83423.0,0.0961]
[1741843828812,0.002,83424.0,83423.0,0.2359806]
[1741843829119,0.002,83424.0,83423.0,0.3859806]
[1741843829818,0.002,83424.0,83423.0,0.3959806]
[1741843831312,0.1218791,83424.0,83423.0,0.3959806]
[1741843832812,0.002,83424.0,83423.0,0.3959806]
[1741843833123,0.002,83424.0,83423.0,0.4059806]
[1741843833520,0.37776448,83430.0,83429.0,0.1198719]
[1741843834418,0.37776448,83430.0,83429.0,0.1831719]
[1741843834819,0.37876448,83430.0,83429.0,0.1831719]
[1741843835126,0.25888738,83430.0,83429.0,0.1831719]
[1741843835320,0.25888738,83430.0,83429.0,0.2031719]
[1741843835526,0.1514724,83430.0,83429.0,0.2031719]
[1741843835726,0.1514724,83430.0,83429.0,0.1831719]
[1741843842931,0.1840724,83430.0,83429.0,0.1831719]
[1741843843623,0.0642,83430.0,83423.0,0.15266]
[1741843843822,0.1798177,83426.0,83425.0,0.1198764]
[1741843844023,0.1798177,83426.0,83425.0,0.1917764]
[1741843846824,0.2440177,83426.0,83425.0,0.1917764]
[1741843848432,0.17933345,83427.0,83426.0,0.1198762]
[1741843848625,0.17933345,83427.0,83426.0,0.4527762]
[1741843850021,0.00017971,83432.0,83426.0,0.3329]
[1741843850226,0.00017971,83432.0,83431.0,0.1198691]
[1741843850425,0.00017971,83432.0,83431.0,0.3998691]
[1741843850632,0.00179838,83447.0,83437.0,0.0599298]
[1741843850826,0.00179838,83447.0,83446.0,0.1198475]
[1741843851023,0.00179838,83447.0,83446.0,0.4298475]
[1741843851234,0.0333,83456.0,83446.0,0.31]
[1741843851434,0.0333,83456.0,83455.0,0.1198346]
[1741843852032,0.18524374,83457.0,83456.0,0.1198332]
[1741843852238,0.18524374,83457.0,83456.0,0.7045932]
[1741843854039,0.00017971,83464.0,83456.0,0.7045932]
[1741843854040,0.10756921,83458.0,83457.0,0.1198317]
[1741843854225,0.22739951,83458.0,83457.0,0.5244317]
[1741843855227,0.10756921,83458.0,83457.0,0.5244317]
[1741843855640,0.22939951,83458.0,83457.0,0.4444317]
[1741843855831,0.22939951,83458.0,83457.0,0.4744317]
[1741843856025,0.10956921,83458.0,83457.0,0.4744317]
[1741843856237,0.22939951,83458.0,83457.0,0.4744317]
[1741843856624,0.23039951,83458.0,83457.0,0.4744317]
[1741843857435,0.1228303,83458.0,83457.0,0.4744317]
[1741843857837,0.003,83458.0,83457.0,0.4744317]
[1741843860842,0.1228303,83458.0,83457.0,0.26]
[1741843861044,0.1228303,83458.0,83457.0,0.3798317]
[1741843861245,0.1228303,83458.0,83457.0,0.4426317]
[1741843861642,0.003,83458.0,83457.0,0.3928]
[1741843861847,0.003,83458.0,83457.0,0.5925517]
[1741843863644,0.00017971,83464.0,83463.0,0.1198231]
[1741843863833,0.00017971,83464.0,83463.0,0.4098231]
[1741843864035,0.00017971,83464.0,83463.0,0.3798231]
[1741843864237,0.12000141,83464.0,83463.0,0.26]
[1741843864849,0.12500141,83464.0,83463.0,0.26]
[1741843865048,0.19030141,83464.0,83463.0,0.26]
[1741843865239,0.19330141,83464.0,83463.0,0.26]
[1741843865841,0.19330141,83464.0,83463.0,0.3798231]
[1741843866850,0.19330141,83464.0,83463.0,0.26]
[1741843866851,0.18830141,83464.0,83463.0,0.26]
[1741843867049,0.19330141,83464.0,83463.0,0.26]
[1741843867351,0.1198446,83448.0,83447.0,0.00017971]
[1741843867751,0.1198446,83448.0,83447.0,0.12002581]
[1741843867953,0.1198446,83448.0,83447.0,0.00017971]
[1741843868140,0.1850446,83448.0,83447.0,0.00017971]
[1741843868941,0.1198619,83436.0,83435.0,0.11992]
[1741843869144,0.1198662,83433.0,83424.0,0.0323]
[1741843869345,0.1198777,83425.0,83424.0,0.0323]
[1741843869541,0.0599364,83429.0,83424.0,0.1821791]
[1741843869753,0.0626,83428.0,83427.0,0.1198748]
[1741843870051,0.1824734,83428.0,83427.0,0.1598748]
[1741843870649,0.1824734,83428.0,83427.0,0.1398748]
[1741843870956,0.0626,83428.0,83427.0,0.1598748]
[1741843871252,0.1824734,83428.0,83427.0,0.1398748]
[1741843871455,0.0626,83428.0,83427.0,0.1508748]
[1741843871854,0.0305,83431.0,83428.0,0.0599364]
[1741843872044,0.0305,83431.0,83430.0,0.1198705]
[1741843872245,0.0321,83435.0,83434.0,0.1198648]
[1741843872445,0.0623,83435.0,83434.0,0.1798648]
[1741843872753,0.0623,83435.0,83434.0,0.2997848]
[1741843873344,0.1821633,83435.0,83434.0,0.2997848]
[1741843874241,0.1841633,83435.0,83434.0,0.2997848]
[1741843874440,0.1841633,83435.0,83434.0,0.17992]
[1741843874651,0.1851633,83435.0,83434.0,0.17992]
[1741843875155,0.1831633,83435.0,83434.0,0.2497848]
[1741843875542,0.1831633,83435.0,83434.0,0.12992]
[1741843875748,0.1831633,83435.0,83434.0,0.11992]
[1741843875956,0.0633,83435.0,83424.0,0.11992]
[1741843876151,0.1198777,83425.0,83424.0,0.14992]
[1741843876356,0.1198777,83425.0,83424.0,0.2897991]
[1741843876550,0.1198777,83425.0,83424.0,0.2697991]
[1741843877057,0.1850777,83425.0,83424.0,0.2697991]
[1741843877353,0.1850777,83425.0,83424.0,0.2717991]
[1741843877558,0.1850777,83425.0,83424.0,0.15192]
[1741843879062,0.1850777,83425.0,83424.0,0.032]
[1741843879357,0.1198806,83423.0,83422.0,9.176e-05]
[1741843879656,0.1198806,83423.0,83422.0,0.11997376]
[1741843879844,0.1198806,83423.0,83422.0,9.176e-05]
[1741843880249,0.1198806,83423.0,83422.0,0.11997376]
[1741843881151,0.1198806,83423.0,83422.0,0.12197376]
[1741843881552,0.1198806,83423.0,83422.0,0.00209176]
[1741843882263,0.11978828,83423.0,83422.0,0.00209176]
[1741843883654,0.11978828,83423.0,83422.0,0.12197376]
[1741843883962,0.11978828,83423.0,83422.0,0.00209176]
[1741843884554,0.11978828,83423.0,83422.0,0.12197376]
[1741843884755,0.1850777,83425.0,83424.0,0.1198791]
[1741843885456,0.1850777,83425.0,83424.0,0.1398791]
[1741843885659,0.0321,83425.0,83424.0,0.1398791]
[1741843885854,0.0321,83425.0,83424.0,0.1598791]
[1741843886053,0.0321,83425.0,83424.0,0.1398791]
[1741843886265,0.1519777,83425.0,83424.0,0.1598791]
[1741843886450,0.0321,83425.0,83424.0,0.1498791]
[1741843886659,0.0321,83425.0,83424.0,0.1798791]
[1741843887365,0.10756921,83430.0,83429.0,0.1198719]
[1741843887554,0.10756921,83430.0,83429.0,0.1698719]
[1741843887750,0.22743971,83430.0,83429.0,0.1398719]
[1741843887955,0.16996921,83430.0,83428.0,0.0631]
[1741843888156,0.1198719,83429.0,83428.0,0.0631]
[1741843888554,0.1822719,83429.0,83428.0,0.0631]
[1741843888956,0.1822719,83429.0,83428.0,0.1829734]
[1741843889164,0.1822719,83429.0,83428.0,0.0631]
[1741843890868,0.0624,83429.0,83425.0,0.11996]
[1741843891060,0.0624,83429.0,83422.0,9.176e-05]
[1741843891061,0.1198791,83424.0,83423.0,0.1503799]
[1741843891257,0.1198791,83424.0,83423.0,0.0305]
[1741843891460,0.0923386,83426.0,83422.0,9.176e-05]
[1741843891660,0.1522806,83423.0,83422.0,0.01009176]
[1741843891868,0.1522806,83423.0,83422.0,0.12997376]
[1741843892057,0.1522806,83423.0,83422.0,0.21507376]
[1741843892255,0.0306,83425.0,83422.0,0.07519176]
[1741843892466,0.22770892,83436.0,83424.0,0.1198791]
[1741843892763,0.0599333,83433.0,83432.0,0.0599328]
[1741843892966,0.13104963,83433.0,83432.0,0.0599328]
[1741843893165,0.01118343,83433.0,83432.0,0.0799328]
[1741843893358,0.10774892,83436.0,83435.0,0.1198633]
[1741843893559,0.10774892,83436.0,83435.0,0.5398233]
[1741843895967,0.10774892,83436.0,83435.0,0.55155563]
[1741843895968,0.00017971,83436.0,83435.0,0.55155563]
[1741843896266,0.00317971,83436.0,83435.0,0.55155563]
[1741843896569,0.01640168,83436.0,83435.0,0.55155563]
[1741843897269,0.13626358,83436.0,83435.0,0.5398233]
[1741843897968,0.12504161,83436.0,83435.0,0.5398233]
[1741843898171,0.13627334,83436.0,83435.0,0.5398233]
[1741843898671,0.13627334,83436.0,83435.0,0.5198233]
[1741843898864,0.13627334,83436.0,83433.0,0.1198656]
[1741843899059,0.1198648,83434.0,83433.0,0.1502656]
[1741843899371,0.13109653,83434.0,83433.0,0.1502656]
[1741843899573,0.19369653,83434.0,83433.0,0.0304]
[1741843899969,0.19384203,83434.0,83433.0,0.0304]
[1741843900369,0.1198676,83432.0,83431.0,0.11992]
[1741843900563,0.1198676,83432.0,83424.0,0.0301]
[1741843900564,0.1198777,83425.0,83424.0,0.0301]
[1741843900765,0.13125493,83425.0,83424.0,0.2698991]
[1741843901472,0.01133599,83425.0,83424.0,0.11992]
[1741843901680,0.13121352,83425.0,83424.0,0.2397991]
[1741843901970,0.13121352,83425.0,83424.0,0.3316991]
[1741843902175,0.01133582,83425.0,83424.0,0.3316991]
[1741843902765,0.13121352,83425.0,83424.0,0.3116991]
[1741843903274,0.13121352,83425.0,83424.0,0.3216991]
[1741843903567,0.13121352,83425.0,83424.0,0.3116991]
[1741843903971,0.13121352,83425.0,83424.0,0.3316991]
[1741843905066,0.13121352,83425.0,83424.0,0.19182]
[1741843905263,0.1198806,83423.0,83422.0,9.176e-05]
[1741843905461,0.13121642,83423.0,83422.0,9.176e-05]
[1741843905870,0.19571642,83423.0,83422.0,9.176e-05]
[1741843907667,0.1198849,83420.0,83412.0,0.0301]
[1741843907868,0.13122072,83420.0,83409.0,0.21453354]
[1741843908271,0.1198992,83410.0,83409.0,0.21453354]
[1741843908461,0.13123502,83410.0,83409.0,0.21453354]
[1741843908668,0.13135866,83410.0,83409.0,0.21453354]
[1741843909064,0.19545247,83410.0,83409.0,0.21453354]
[1741843909270,0.21405007,83410.0,83409.0,0.21453354]
[1741843909774,0.21405007,83410.0,83407.0,0.1199028]
[1741843910070,0.1199021,83408.0,83407.0,0.1502028]
[1741843910376,0.15002933,83408.0,83407.0,0.1502028]
[1741843910576,0.21392933,83408.0,83407.0,0.1502028]
[1741843910973,0.21392933,83408.0,83407.0,0.0303]
[1741843911373,0.1199107,83402.0,83401.0,1.39317982]
[1741843911568,0.15003793,83402.0,83401.0,0.00017982]
[1741843911980,0.15003793,83402.0,83401.0,0.03157982]
[1741843912167,0.21283793,83402.0,83401.0,0.03157982]
[1741843912369,0.22428767,83402.0,83401.0,0.00017982]
[1741843912677,0.22528767,83402.0,83401.0,0.00017982]
[1741843914579,0.22428767,83402.0,83401.0,0.03157982]
[1741843914781,0.22428767,83402.0,83401.0,0.06397982]
[1741843915880,0.22505562,83402.0,83401.0,0.03157982]
[1741843916986,0.22505562,83402.0,83401.0,0.00017982]
[1741843919278,0.22505562,83402.0,83401.0,0.03157982]
[1741843919477,0.22505562,83402.0,83401.0,0.00017982]
[1741843920779,0.22505562,83402.0,83401.0,0.06487982]
[1741843921882,0.33225566,83402.0,83401.0,0.06487982]
[1741843922280,0.18124496,83402.0,83401.0,0.18479202]
[1741843922481,0.28214324,83402.0,83401.0,0.18479202]
[1741843923280,0.28213818,83402.0,83401.0,0.18479202]
[1741843923480,0.27078992,83402.0,83401.0,0.18479202]
[1741843925191,0.17514059,83402.0,83401.0,0.18479202]
[1741843925386,0.19426141,83402.0,83401.0,0.06487982]
[1741843925587,0.19426141,83402.0,83401.0,0.00017982]
[1741843925787,0.22536141,83402.0,83401.0,0.00017982]
[1741843925989,0.1199122,83401.0,83400.0,0.1]
[1741843926293,0.18228135,83401.0,83400.0,0.1]
[1741843926480,0.22646143,83401.0,83400.0,0.1]
[1741843926893,0.19539228,83401.0,83400.0,0.1]
[1741843927093,0.22661534,83401.0,83400.0,0.1]
[1741843927899,0.1199237,83393.0,83392.0,0.00011992]
[1741843928190,0.1512704,83393.0,83392.0,0.00011992]
[1741843928395,0.16275048,83393.0,83392.0,0.00011992]
[1741843928798,0.10682678,83393.0,83374.0,0.00179909]
[1741843928986,0.1199496,83375.0,83374.0,0.11179909]
[1741843929192,0.15131729,83375.0,83374.0,0.11]
[1741843929791,0.16284421,83375.0,83374.0,0.11]
[1741843930282,0.22964421,83375.0,83374.0,0.11]
[1741843930497,0.1199625,83366.0,83365.0,0.0636]
[1741843930791,0.16361838,83366.0,83365.0,0.1236]
[1741843931193,0.1751453,83366.0,83365.0,0.1236]
[1741843931593,0.16300481,83366.0,83365.0,0.1236]
[1741843931798,0.14349829,83366.0,83365.0,0.243564]
[1741843931994,0.01300887,83366.0,83365.0,0.263564]
[1741843932492,0.001,83366.0,83365.0,0.243564]
[1741843932697,0.001,83366.0,83365.0,0.273564]
[1741843933093,0.001,83366.0,83365.0,0.263564]
[1741843934288,0.1209625,83366.0,83365.0,0.263564]
[1741843934495,0.13282139,83366.0,83365.0,0.243564]
[1741843934699,0.13282139,83366.0,83365.0,0.1236]
[1741843935292,0.19552139,83366.0,83365.0,0.1236]
[1741843935493,0.22660853,83366.0,83365.0,0.1236]
[1741843935800,0.10664603,83366.0,83365.0,0.263564]
[1741843936003,0.02461354,83366.0,83365.0,0.243564]
[1741843936201,0.14457604,83366.0,83365.0,0.263564]
[1741843936396,0.14457604,83366.0,83365.0,0.243564]
[1741843937296,0.05561354,83366.0,83365.0,0.243564]
[1741843937610,0.02461354,83366.0,83365.0,0.263564]
[1741843938105,0.14473432,83366.0,83365.0,0.243564]
[1741843938307,0.1639614,83366.0,83365.0,0.1236]
[1741843938899,0.1639614,83366.0,83365.0,0.243564]
[1741843939109,0.1943614,83366.0,83365.0,0.243564]
[1741843939812,0.18228311,83366.0,83365.0,0.243564]
[1741843940019,0.21443791,83366.0,83365.0,0.243564]
[1741843940218,0.21443791,83366.0,83365.0,0.1236]
[1741843940514,0.21443791,83366.0,83365.0,0.243564]
[1741843941417,0.21643791,83366.0,83365.0,0.263564]
[1741843941817,0.21643791,83366.0,83365.0,0.243564]
[1741843942217,0.21643791,83366.0,83365.0,0.1236]
[1741843942609,0.21643791,83366.0,83361.0,0.00013254]
[1741843942610,0.24653791,83366.0,83361.0,0.00013254]
[1741843942916,0.1199683,83362.0,83361.0,0.21010224]
[1741843943118,0.1521231,83362.0,83361.0,0.27330224]
[1741843943720,0.15092764,83362.0,83361.0,0.27330224]
[1741843944417,0.18184825,83362.0,83361.0,0.27330224]
[1741843944621,0.18384825,83362.0,83361.0,0.27330224]
[1741843944922,0.18584825,83362.0,83361.0,0.27330224]
[1741843945519,0.1839696,83362.0,83361.0,0.27330224]
[1741843945720,0.1869696,83362.0,83361.0,0.27330224]
[1741843946418,0.1869696,83362.0,83361.0,0.15333254]
[1741843947112,0.15992494,83362.0,83350.0,0.1204]
[1741843947312,0.1199798,83354.0,83353.0,0.0609]
[1741843947517,0.15106049,83354.0,83353.0,0.2527812]
[1741843947723,0.15106049,83354.0,83353.0,0.1328]
[1741843947924,0.1819811,83354.0,83353.0,0.1328]
[1741843948820,0.15090041,83354.0,83353.0,0.1328]
[1741843949019,0.18309642,83354.0,83353.0,0.0703]
[1741843949210,0.18309772,83354.0,83353.0,0.0703]
[1741843950011,0.18509772,83354.0,83353.0,0.0703]
[1741843950416,0.18709772,83354.0,83353.0,0.0703]
[1741843950719,0.18709772,83354.0,83353.0,0.2102812]
[1741843951221,0.18709772,83354.0,83353.0,0.1902812]
[1741843951426,0.18709772,83354.0,83353.0,0.2102812]
[1741843951629,0.18709772,83354.0,83353.0,0.1902812]
[1741843952319,0.06711792,83354.0,83353.0,0.2102812]
[1741843953417,0.18709772,83354.0,83353.0,0.2102812]
[1741843953922,0.06711792,83354.0,83353.0,0.2102812]
[1741843954127,0.06619378,83354.0,83353.0,0.1902812]
[1741843954428,0.06619534,83354.0,83353.0,0.3406012]
[1741843954728,0.02778888,83354.0,83353.0,0.3406012]
[1741843956725,0.14776868,83354.0,83353.0,0.3406012]
[1741843957419,0.02778888,83354.0,83353.0,0.3406012]
[1741843958217,0.16697116,83354.0,83353.0,0.3406012]
[1741843958416,0.18558474,83354.0,83353.0,0.3406012]
[1741843959327,0.1855817,83354.0,83353.0,0.3406012]
[1741843959731,0.16697116,83354.0,83353.0,0.3406012]
[1741843960225,0.16654969,83354.0,83353.0,0.3406012]
[1741843960833,0.06530107,83354.0,83353.0,0.3406012]
[1741843961028,0.03034394,83354.0,83353.0,0.3406012]
[1741843961327,0.1432958,83357.0,83356.0,0.1199769]
[1741843961632,0.1068879,83357.0,83356.0,0.5399769]
[1741843961932,0.1068879,83357.0,83356.0,0.5499769]
[1741843962225,0.25096612,83379.0,83356.0,0.5499769]
[1741843962226,0.1093744,83363.0,83362.0,0.1199683]
[1741843962527,0.25096612,83379.0,83367.0,0.1199611]
[1741843962731,0.1199457,83378.0,83367.0,0.6699611]
[1741843962928,0.0306,83378.0,83367.0,0.6699611]
[1741843963127,0.33438838,83368.0,83367.0,0.68173442]
[1741843963326,0.21452018,83368.0,83367.0,0.68173442]
[1741843963628,0.120051,83368.0,83367.0,0.8239811]
[1741843963833,0.183751,83368.0,83367.0,0.39288]
[1741843964028,0.183751,83368.0,83367.0,0.3919611]
[1741843964234,0.183751,83368.0,83367.0,0.272]
[1741843964433,0.19499828,83368.0,83367.0,0.272]
[1741843964732,0.21356094,83368.0,83367.0,0.002]
[1741843965434,0.21656094,83368.0,83367.0,0.002]
[1741843965735,0.19799828,83368.0,83367.0,0.002]
[1741843965920,0.185751,83368.0,83363.0,0.1199663]
[1741843966119,0.0599817,83366.0,83360.0,0.1260852]
[1741843966325,0.0599817,83366.0,83354.0,0.33557354]
[1741843966326,0.1199712,83360.0,83354.0,0.33557354]
[1741843966735,0.1199712,83360.0,83358.0,0.1199735]
[1741843967231,0.1844712,83360.0,83359.0,0.12015253]
[1741843967420,0.1844712,83360.0,83359.0,0.06187993]
[1741843967622,0.1844712,83360.0,83359.0,0.00017993]
[1741843968136,0.1874712,83360.0,83359.0,0.00017993]
[1741843968330,0.0675,83360.0,83359.0,0.14015253]
[1741843968531,0.1874712,83360.0,83359.0,0.00017993]
[1741843969633,0.18759538,83360.0,83359.0,0.00017993]
[1741843969838,0.18959538,83360.0,83359.0,0.00017993]
[1741843970932,0.18859538,83360.0,83359.0,0.00017993]
[1741843971126,0.19159538,83360.0,83359.0,0.12015253]
[1741843971325,0.19159538,83360.0,83359.0,0.15215253]
[1741843971524,0.18859538,83360.0,83359.0,0.03217993]
[1741843971721,0.18959538,83360.0,83359.0,0.03217993]
[1741843971934,0.18959538,83360.0,83359.0,0.15215253]
[1741843972523,0.18959538,83360.0,83359.0,0.03217993]
[1741843972724,0.18959538,83360.0,83359.0,0.15215253]
[1741843973228,0.20094376,83360.0,83359.0,0.15215253]
[1741843973429,0.20094376,83360.0,83359.0,0.00017993]
[1741843973740,0.21060777,83360.0,83359.0,0.00017993]
[1741843973941,0.20960777,83360.0,83359.0,0.00017993]
[1741843974742,0.21060777,83360.0,83359.0,0.00017993]
[1741843975238,0.20960777,83360.0,83359.0,0.00017993]
[1741843975438,0.21060777,83360.0,83359.0,0.00017993]
[1741843975735,0.21460777,83360.0,83359.0,0.00017993]
[1741843977040,0.21160777,83360.0,83359.0,0.00017993]
[1741843977334,0.21460777,83360.0,83359.0,0.00017993]
[1741843977727,0.21460777,83360.0,83359.0,0.12015253]
[1741843978124,0.21460777,83360.0,83359.0,0.00017993]
[1741843978442,0.2729324,83360.0,83359.0,0.00017993]
[1741843978829,0.2729324,83360.0,83359.0,0.03297993]
[1741843979424,0.2729324,83360.0,83359.0,0.06557993]
[1741843980236,0.2729324,83360.0,83359.0,0.00017993]
[1741843983035,0.2729324,83360.0,83359.0,0.06267993]
[1741843983230,0.2729324,83360.0,83359.0,0.00017993]
[1741843983645,0.1199856,83350.0,83347.0,0.00179963]
[1741843983936,0.1199884,83348.0,83347.0,0.06179963]
[1741843984129,0.13133678,83348.0,83347.0,0.06179963]
[1741843984330,0.19313678,83348.0,83347.0,0.18178953]
[1741843984531,0.20480079,83348.0,83347.0,0.12429963]
[1741843984729,0.20480079,83348.0,83347.0,0.24428953]
[1741843984944,0.20480079,83348.0,83347.0,0.26428953]
[1741843985336,0.20463054,83348.0,83347.0,0.24528953]
[1741843986642,0.20463054,83348.0,83347.0,0.12529963]
[1741843986833,0.20463054,83348.0,83347.0,0.24528953]
[1741843987448,0.20463054,83348.0,83347.0,0.24428953]
[1741843987645,0.20463054,83348.0,83347.0,0.12429963]
[1741843989040,0.20448981,83348.0,83347.0,0.12429963]
[1741843992145,0.20448981,83348.0,83347.0,0.24428953]
[1741843992349,0.20448981,83348.0,83347.0,0.26428953]
[1741843992842,0.20448981,83348.0,83347.0,0.24428953]
[1741843992843,0.19345241,83348.0,83347.0,0.24428953]
[1741843993237,0.19345241,83348.0,83347.0,0.26428953]
[1741843993647,0.19345241,83348.0,83347.0,0.24428953]
[1741843994232,0.19345241,83348.0,83347.0,0.12429963]
[1741843994844,0.20456011,83348.0,83347.0,0.12429963]
[1741843995459,0.20456011,83348.0,83347.0,0.24428953]
[1741843995643,0.20456011,83348.0,83347.0,0.26428953]
[1741843995839,0.04236401,83348.0,83347.0,0.26428953]
[1741843996040,0.01166401,83348.0,83347.0,0.26428953]
[1741843997343,0.00013254,83349.0,83347.0,0.26428953]
[1741843997536,0.00013254,83349.0,83348.0,0.1199884]
[1741843997741,0.00013254,83349.0,83348.0,0.6099884]
[1741843997943,0.00017993,83356.0,83354.0,0.1199798]
[1741843998240,0.00017993,83356.0,83354.0,0.6599798]
[1741843998739,0.00017993,83356.0,83355.0,0.1199784]
[1741843998943,0.24996612,83368.0,83355.0,0.4829]
[1741843999137,0.24996612,83368.0,83367.0,0.1199611]
[1741843999337,0.24996612,83368.0,83367.0,0.3611611]
[1741843999944,0.36992572,83368.0,83367.0,0.3611611]
[1741844000437,0.36992572,83368.0,83367.0,0.2412]
[1741844001054,0.25596612,83368.0,83367.0,0.3611611]
[1741844001250,0.26296612,83368.0,83367.0,0.3611611]
[1741844002242,0.26296612,83368.0,83367.0,0.2399611]
[1741844002441,0.26296612,83368.0,83367.0,0.3614011]
[1741844002641,0.26296612,83368.0,83367.0,0.4277011]
[1741844003257,0.013,83368.0,83367.0,0.4277011]
[1741844003658,0.35917049,83375.0,83374.0,0.119951]
[1741844003838,0.35917049,83375.0,83374.0,0.149951]
[1741844004041,0.23921719,83375.0,83374.0,0.149951]
[1741844004250,0.17924239,83375.0,83374.0,0.149951]
[1741844004451,0.17924239,83375.0,83374.0,0.211751]
[1741844004755,0.18624239,83375.0,83374.0,0.211751]
[1741844005346,0.19324239,83375.0,83374.0,0.211751]
[1741844006846,0.011,83375.0,83374.0,0.211751]
[1741844007359,0.008,83375.0,83374.0,0.211751]
[1741844007543,0.1279496,83375.0,83374.0,0.211751]
[1741844007748,0.1942496,83375.0,83374.0,0.211751]
[1741844008148,0.1611496,83375.0,83374.0,0.211751]
[1741844009344,0.1919496,83375.0,83374.0,0.211751]
[1741844009957,0.1919496,83375.0,83374.0,0.0614]
[1741844010553,0.1919496,83375.0,83374.0,0.213251]
[1741844011060,0.1919496,83375.0,83374.0,0.0933]
[1741844011956,0.1919496,83375.0,83374.0,0.01]
[1741844012152,0.072,83375.0,83366.0,0.1199618]
[1741844012344,0.0599783,83371.0,83367.0,0.0653]
[1741844012547,0.1199596,83368.0,83367.0,0.0753]
[1741844013349,0.1199596,83368.0,83367.0,0.1952611]
[1741844014159,0.1209596,83368.0,83367.0,0.1952611]
[1741844015253,0.1209596,83368.0,83367.0,0.0753]
[1741844016258,0.1209596,83368.0,83367.0,0.043]
[1741844016564,0.1229596,83368.0,83367.0,0.01]
[1741844017046,0.1229596,83368.0,83367.0,0.1299611]
[1741844017247,0.003,83368.0,83367.0,0.1499611]
[1741844017448,0.003,83368.0,83367.0,0.1299611]
[1741844017653,0.1229596,83368.0,83367.0,0.1799611]
[1741844017946,0.1229596,83368.0,83367.0,0.2114611]
[1741844018146,0.1229596,83368.0,83367.0,0.2139611]
[1741844019752,0.1229596,83368.0,83367.0,0.1939611]
[1741844019951,0.1229596,83368.0,83367.0,0.2239611]
[1741844020148,0.003,83368.0,83367.0,0.2139611]
[1741844020949,0.1229596,83368.0,83367.0,0.094]
[1741844021154,0.1229596,83368.0,83367.0,0.1299611]
[1741844021556,0.1859596,83368.0,83367.0,0.01]
[1741844021862,0.1859596,83368.0,83367.0,0.1299611]
[1741844022056,0.1859596,83368.0,83367.0,0.01]
[1741844022756,0.1199712,83360.0,83359.0,0.00017993]
[1741844023662,0.1829712,83360.0,83359.0,0.00017993]
[1741844023861,0.1829712,83360.0,83359.0,0.00117993]
[1741844024259,0.1829712,83360.0,83359.0,0.00217993]
[1741844024464,0.1829712,83360.0,83359.0,0.12215253]
[1741844025059,0.1829712,83360.0,83359.0,0.00217993]
[1741844025560,0.1829712,83360.0,83359.0,0.12215253]
[1741844025859,0.1829712,83360.0,83359.0,0.15365253]
[1741844026755,0.1829712,83360.0,83359.0,0.03367993]
[1741844027154,0.1829712,83360.0,83359.0,0.00217993]
[1741844027667,0.29036271,83360.0,83359.0,0.00217993]
[1741844029156,0.29036271,83360.0,83359.0,0.12215253]
[1741844029357,0.29036271,83360.0,83359.0,0.14215253]
[1741844029753,0.29036271,83360.0,83359.0,0.03447993]
[1741844031360,0.29036271,83360.0,83359.0,0.00217993]
[1741844031567,0.1829712,83360.0,83359.0,0.00217993]
[1741844031862,0.1829712,83360.0,83359.0,0.03457993]
[1741844032057,0.1829712,83360.0,83359.0,0.00217993]
[1741844036165,0.063,83360.0,83339.0,0.0089987]
[1741844036371,0.12,83340.0,83339.0,0.3200006]
[1741844036565,0.12,83340.0,83339.0,0.3854006]
[1741844037268,0.1808,83340.0,83339.0,0.3854006]
[1741844037572,0.1808,83340.0,83339.0,0.3924006]
[1741844037956,0.1808,83340.0,83339.0,0.3854006]
[1741844038168,0.1818,83340.0,83339.0,0.3924006]
[1741844038371,0.1818,83340.0,83339.0,0.3954006]
[1741844039166,0.1828,83340.0,83339.0,0.3954006]
[1741844039563,0.002,83340.0,83339.0,0.3954006]
[1741844039767,0.122,83340.0,83339.0,0.3954006]
[1741844040876,0.1525,83340.0,83339.0,0.3954006]
[1741844042570,0.1525,83340.0,83339.0,0.0754]
[1741844042776,0.1525,83340.0,83339.0,0.1627]
[1741844043872,0.1525,83340.0,83339.0,0.2827014]
[1741844044068,0.0325,83340.0,83339.0,0.2827014]
[1741844044372,0.002,83340.0,83339.0,0.3337014]
[1741844044572,0.122,83340.0,83339.0,0.3337014]
[1741844044966,0.122,83340.0,83339.0,0.2137]
[1741844045167,0.122,83340.0,83339.0,0.3337014]
[1741844046574,0.002,83340.0,83339.0,0.3337014]
[1741844046879,0.122,83340.0,83339.0,0.3337014]
[1741844047074,0.002,83340.0,83339.0,0.4541414]
[1741844047871,0.122,83340.0,83339.0,0.4541414]
[1741844048671,0.002,83340.0,83339.0,0.4541414]
[1741844048871,0.10737608,83342.0,83339.0,0.19414]
[1741844049076,0.10737608,83342.0,83341.0,0.1199985]
[1741844049278,0.00017993,83348.0,83347.0,0.1199899]
[1741844049479,0.00017993,83348.0,83347.0,0.4999899]
[1741844049979,0.00017993,83348.0,83347.0,0.5638899]
[1741844050982,0.00117993,83348.0,83347.0,0.5688899]
[1741844051985,0.00217993,83348.0,83347.0,0.5728899]
[1741844052477,0.12216833,83348.0,83347.0,0.58479489]
[1741844055266,0.12216833,83348.0,83347.0,0.4529]
[1741844055483,0.15416833,83348.0,83347.0,0.4529]
[1741844056074,0.18436833,83348.0,83347.0,0.4529]
[1741844056275,0.18436833,83348.0,83347.0,0.5728899]
[1741844056483,0.18436833,83348.0,83347.0,0.4529]
[1741844058389,0.18436833,83348.0,83347.0,0.249]
[1741844058782,0.18436833,83348.0,83347.0,0.009]
[1741844060280,0.29174441,83348.0,83347.0,0.009]
[1741844060485,0.29174441,83348.0,83347.0,0.1289899]
[1741844061083,0.29174441,83348.0,83347.0,0.1922899]
[1741844061480,0.29174441,83348.0,83347.0,0.2022899]
[1741844063682,0.18436833,83348.0,83347.0,0.2022899]
[1741844063889,0.18436833,83348.0,83347.0,0.0823]
[1741844064293,0.18436833,83348.0,83347.0,0.0518]
[1741844064680,0.18436833,83348.0,83347.0,0.019]
[1741844067193,0.18436833,83348.0,83347.0,0.009]
[1741844067697,0.18436833,83348.0,83331.0,0.70698657]
[1741844067698,0.1200115,83332.0,83331.0,0.34338302]
[1741844067896,0.1200115,83332.0,83331.0,0.60382302]
[1741844068297,0.1200115,83332.0,83331.0,0.63642302]
[1741844068692,0.0312,83333.0,83332.0,0.1200115]
[1741844068893,0.0312,83333.0,83332.0,0.2726115]
[1741844069095,0.0312,83333.0,83332.0,0.3034115]
[1741844069296,0.0623,83333.0,83332.0,0.3034115]
[1741844069495,0.18231,83333.0,83332.0,0.3034115]
[1741844070197,0.18331,83333.0,83332.0,0.3034115]